bitfinex-derivatives/quotes_ETHF0:USTF0_20240925
["timestamp","ask_amount","ask_price","bid_price","bid_amount"]
[1727286463799,5.85994,2571.9,2571.5,0.38889]
[1727286463999,5.4711,2571.9,2571.6,0.38887]
[1727286464306,5.4711,2571.9,2571.4,3.03]
[1727286464507,0.38885,2571.8,2571.4,0.38891]
[1727286464802,2.45195,2571.8,2571.5,0.38889]
[1727286465000,2.45195,2571.8,2571.4,0.3889]
[1727286465200,0.38887,2571.7,2571.3,4.74161]
[1727286465497,2.45195,2571.8,2571.4,0.3889]
[1727286465703,2.0631,2571.8,2571.5,0.38889]
[1727286465902,2.45195,2571.8,2571.5,0.38889]
[1727286466203,2.45195,2571.8,2571.4,0.3889]
[1727286466590,2.45195,2571.8,2571.3,4.3527]
[1727286466591,2.0631,2571.8,2571.5,0.38888]
[1727286466807,2.45195,2571.8,2571.4,0.3889]
[1727286467301,2.45195,2571.8,2571.3,4.3527]
[1727286467495,2.45195,2571.8,2571.4,0.3889]
[1727286467696,2.45195,2571.8,2571.5,0.38889]
[1727286467905,5.4711,2571.9,2571.5,0.38889]
[1727286468105,2.1425,2572.1,2571.9,0.38883]
[1727286468306,2.1425,2572.1,2572.0,0.38882]
[1727286469197,5.369,2572.3,2572.2,0.38879]
[1727286469395,7.435,2572.3,2572.1,0.38879]
[1727286469601,7.435,2572.3,2571.9,4.405]
[1727286469792,7.435,2572.3,2572.2,0.38879]
[1727286470414,7.435,2572.3,2572.1,0.38879]
[1727286470602,0.38879,2572.2,2571.9,0.38882]
[1727286471200,7.435,2572.3,2571.6,3.03]
[1727286471402,3.59665,2571.8,2571.6,0.38887]
[1727286471810,2.066,2571.7,2571.6,0.38888]
[1727286472908,3.2078,2571.8,2571.7,0.38886]
[1727286473602,5.314,2572.2,2572.1,0.3888]
[1727286473802,3.2078,2572.2,2572.1,0.3888]
[1727286476099,3.2078,2572.2,2572.1,4.2768]
[1727286477110,3.2078,2572.2,2572.1,0.3888]
[1727286477508,3.2078,2572.2,2572.1,4.2768]
[1727286478317,3.2078,2572.2,2572.1,0.3888]
[1727286478616,3.2078,2572.2,2572.1,4.2768]
[1727286479006,3.2078,2572.2,2572.1,0.3888]
[1727286479212,3.2078,2572.2,2572.1,4.2768]
[1727286479513,3.2078,2572.2,2572.1,0.3888]
[1727286479717,3.2078,2572.2,2571.9,0.38882]
[1727286479915,3.2078,2572.2,2572.0,0.38882]
[1727286480414,3.2078,2572.2,2572.1,0.3888]
[1727286481612,3.2078,2572.2,2572.1,10.2768]
[1727286481813,3.2078,2572.2,2572.1,12.5576]
[1727286482017,3.2078,2572.2,2572.1,6.5576]
[1727286482415,3.2078,2572.2,2572.1,12.5576]
[1727286482807,3.2078,2572.2,2572.1,6.5576]
[1727286483509,3.2078,2572.2,2572.1,12.5576]
[1727286484718,3.2078,2572.2,2572.1,6.5576]
[1727286484915,3.2078,2572.2,2572.0,3.03]
[1727286485113,3.2078,2572.2,2572.0,3.41881]
[1727286485313,3.2078,2572.2,2572.0,3.03]
[1727286485513,3.2078,2572.2,2572.0,3.41882]
[1727286485713,3.2078,2572.2,2572.0,3.03]
[1727286485908,3.2078,2572.2,2572.0,3.41881]
[1727286486115,4.69450086,2572.2,2572.0,3.41882]
[1727286486314,4.69450086,2572.2,2572.0,3.41881]
[1727286486535,4.69450086,2572.2,2572.0,3.03]
[1727286486720,4.69450086,2572.2,2572.1,0.3888]
[1727286487421,4.69450086,2572.2,2572.1,4.2768]
[1727286488017,4.69450086,2572.2,2572.1,0.3888]
[1727286491620,3.2078,2572.2,2572.1,0.3888]
[1727286491919,5.19006782,2572.2,2571.8,7.5175]
[1727286492120,4.69923406,2571.9,2571.8,2.1972]
[1727286492317,3.59664,2571.9,2571.6,3.41887]
[1727286492520,1.49136707,2571.8,2571.6,3.03]
[1727286492722,3.59664,2571.9,2571.6,3.03]
[1727286492916,3.59664,2571.9,2571.6,3.41888]
[1727286493120,3.2078,2571.9,2571.6,3.03]
[1727286493314,3.2078,2571.9,2571.7,0.38885]
[1727286494133,3.2078,2571.9,2571.6,3.03]
[1727286494424,3.2078,2571.9,2571.7,0.38885]
[1727286495019,3.2078,2571.9,2571.8,3.41885]
[1727286495221,2.2333,2572.1,2572.0,0.38882]
[1727286495524,2.2333,2572.1,2572.0,3.41882]
[1727286496827,3.2078,2572.3,2572.0,3.03]
[1727286497027,3.2078,2572.3,2572.0,5.68181]
[1727286497028,3.59658,2572.3,2572.0,5.68181]
[1727286497229,3.2078,2572.3,2572.1,0.3888]
[1727286497428,3.2078,2572.3,2571.7,1.98751036]
[1727286497429,3.2078,2572.3,2571.8,3.03]
[1727286497624,0.38879,2572.2,2571.9,0.38883]
[1727286497930,0.3888,2572.2,2571.9,0.38883]
[1727286498627,5.08794707,2572.3,2572.0,0.38881]
[1727286499520,4.69916707,2572.3,2572.0,3.03]
[1727286499717,3.2069,2572.3,2572.2,3.41879]
[1727286505535,3.2069,2572.3,2572.2,3.03]
[1727286505738,0.3888,2572.1,2571.8,4.04536036]
[1727286506035,5.87622,2572.0,2571.8,3.03]
[1727286506342,0.38886,2571.7,2571.6,3.03]
[1727286506527,5.2863,2571.9,2571.4,7.25316036]
[1727286506733,5.2863,2571.9,2571.4,6.2378]
[1727286506734,0.38887,2571.7,2571.4,6.2378]
[1727286507131,0.38887,2571.7,2571.6,3.03]
[1727286508041,0.38889,2571.6,2571.4,3.03]
[1727286508341,0.38891,2571.5,2571.1,4.80595]
[1727286508633,3.2078,2571.3,2571.2,0.38894]
[1727286508835,3.2078,2571.3,2571.2,3.41894]
[1727286509035,3.2078,2571.3,2571.2,3.03]
[1727286509728,5.3623,2571.3,2571.2,3.03]
[1727286510034,5.3623,2571.3,2571.2,3.41894]
[1727286510930,3.2078,2571.3,2571.2,3.41894]
[1727286511733,2.1545,2571.6,2571.2,3.41894]
[1727286511734,2.1545,2571.6,2571.5,0.38889]
[1727286511936,9.01196707,2571.9,2571.5,3.03]
[1727286512140,4.07216782,2572.1,2571.8,3.03]
[1727286512442,2.2125,2572.3,2571.9,3.2078]
[1727286512639,2.2125,2572.3,2572.0,3.03]
[1727286512835,2.2125,2572.3,2572.2,3.03]
[1727286513138,2.60127,2572.3,2572.2,3.03]
[1727286513342,2.2125,2572.3,2572.2,3.03]
[1727286515229,0.3888,2572.2,2572.0,3.03]
[1727286515534,2.2766,2572.2,2572.0,3.03]
[1727286516232,2.2766,2572.2,2572.0,3.41882]
[1727286516640,2.2766,2572.2,2572.0,3.03]
[1727286519538,2.2125,2572.3,2572.2,0.38879]
[1727286519740,2.2125,2572.3,2572.2,3.41879]
[1727286521141,0.38882,2572.0,2571.7,1.40422036]
[1727286521346,13.07246,2572.3,2571.7,1.40422036]
[1727286521347,0.38881,2572.1,2571.7,0.38885]
[1727286521745,2.51951,2572.1,2571.8,0.38885]
[1727286522043,2.51951,2572.1,2571.5,3.2078]
[1727286522044,2.51951,2572.1,2571.9,3.03]
[1727286522240,2.1307,2572.1,2571.9,3.03]
[1727286522544,2.1307,2572.1,2571.9,3.41883]
[1727286524246,2.51951,2572.1,2571.9,3.41883]
[1727286524437,2.5195,2572.1,2571.9,3.41882]
[1727286525040,2.1307,2572.1,2572.0,0.38882]
[1727286526846,5.4418,2572.2,2572.1,0.3888]
[1727286527044,3.2078,2572.2,2572.1,3.4188]
[1727286527245,2.2125,2572.3,2572.2,0.38879]
[1727286528043,2.60127,2572.3,2572.2,0.38879]
[1727286528356,2.2125,2572.3,2572.2,0.38879]
[1727286529752,2.2125,2572.3,2572.1,3.41879]
[1727286530049,0.38882,2572.0,2571.9,3.03]
[1727286530245,2.2125,2572.3,2571.9,3.03]
[1727286530549,2.2125,2572.3,2572.1,0.3888]
[1727286530742,0.38877,2572.4,2572.2,0.38879]
[1727286530944,0.38877,2572.3,2572.2,0.38879]
[1727286531247,5.3469,2572.5,2572.4,0.38876]
[1727286531446,5.3469,2572.5,2572.4,3.41876]
[1727286531848,3.2078,2572.5,2572.4,3.41876]
[1727286532544,3.2078,2572.5,2572.4,4.39066]
[1727286532748,3.2078,2572.5,2572.4,3.41876]
[1727286532954,3.2078,2572.5,2572.4,4.39066]
[1727286533253,2.48129002,2572.6,2572.5,0.38874]
[1727286533458,5.3823,2573.0,2572.7,0.38871]
[1727286533644,3.2078,2573.0,2572.9,3.41868]
[1727286533848,2.1745,2573.5,2573.3,0.38862]
[1727286534143,2.1745,2573.5,2573.4,3.03]
[1727286534350,3.2078,2573.6,2573.4,5.1413]
[1727286534549,3.2078,2573.6,2573.4,7.2414]
[1727286534856,0.38859,2573.5,2573.4,5.1413]
[1727286535151,3.2078,2573.6,2573.4,5.1413]
[1727286535152,3.59639,2573.6,2573.4,5.1413]
[1727286535360,3.2078,2573.6,2573.4,5.1413]
[1727286539949,3.59639,2573.6,2573.4,5.1413]
[1727286540148,3.2078,2573.6,2573.4,5.1413]
[1727286540550,3.2078,2573.6,2573.2,0.38863]
[1727286540551,0.38859,2573.5,2573.2,3.03]
[1727286540746,0.3886,2573.5,2573.2,3.03]
[1727286541051,0.38864,2573.2,2573.1,5.3079]
[1727286541250,4.77231,2573.4,2573.0,5.1852]
[1727286541454,0.38862,2573.3,2573.2,3.03]
[1727286541648,0.38862,2573.3,2573.0,7.3695]
[1727286541649,0.38863,2573.3,2573.0,7.3695]
[1727286541849,0.38864,2573.2,2573.0,7.3695]
[1727286542051,0.38865,2573.1,2573.0,3.03]
[1727286542449,0.38868,2573.0,2572.8,6.2378]
[1727286542653,4.17936,2573.3,2572.8,6.2378]
[1727286542654,6.15710835,2573.3,2572.8,6.2378]
[1727286542955,4.17936,2573.3,2572.8,6.2378]
[1727286543147,0.38867,2573.0,2572.8,6.2378]
[1727286543344,0.38866,2573.1,2572.8,6.2378]
[1727286543749,0.38868,2573.0,2572.8,6.2378]
[1727286543950,4.17936,2573.3,2572.8,6.2378]
[1727286544156,2.65648,2572.9,2572.8,3.03]
[1727286545155,2.2678,2572.9,2572.8,3.03]
[1727286545358,2.65648,2572.9,2572.8,3.03]
[1727286545548,2.2678,2572.9,2572.8,3.03]
[1727286545749,2.65648,2572.9,2572.8,3.03]
[1727286546355,5.4756,2572.9,2572.6,3.03]
[1727286546660,0.38877,2572.3,2572.1,4.2755]
[1727286547047,4.17963,2572.6,2572.0,6.2378]
[1727286547048,2.68169,2572.2,2572.0,6.2378]
[1727286547359,0.3888,2572.1,2572.0,6.2378]
[1727286547560,2.2929,2572.2,2572.0,6.2378]
[1727286547754,2.68169,2572.2,2572.0,6.2378]
[1727286547948,3.2078,2572.6,2572.0,3.03]
[1727286548153,0.38872,2572.7,2572.4,3.41876]
[1727286548362,2.6649,2572.8,2572.4,3.41876]
[1727286548565,2.2762,2572.8,2572.4,3.03]
[1727286548869,0.38871,2572.7,2572.4,3.41875]
[1727286549364,2.66491,2572.8,2572.5,0.38874]
[1727286549552,2.2762,2572.8,2572.5,0.38874]
[1727286549757,0.38871,2572.7,2572.5,0.38874]
[1727286550058,2.6649,2572.8,2572.6,0.38872]
[1727286550255,0.38871,2572.7,2572.6,3.03]
[1727286550962,0.38871,2572.8,2572.6,3.41872]
[1727286551159,5.2989,2572.9,2572.6,3.03]
[1727286551458,0.3887,2572.8,2572.6,3.03]
[1727286551658,0.38871,2572.7,2572.6,3.03]
[1727286552758,0.38871,2572.8,2572.6,3.03]
[1727286552962,0.38871,2572.7,2572.6,3.03]
[1727286553459,5.2989,2572.9,2572.8,0.3887]
[1727286553666,3.2078,2572.9,2572.8,3.4187]
[1727286553865,2.51994,2573.2,2572.9,0.38867]
[1727286554171,0.38865,2573.1,2572.9,4.60247]
[1727286554466,2.1313,2573.2,2573.0,0.38866]
[1727286554467,0.38864,2573.2,2573.0,0.38866]
[1727286554660,0.38867,2573.0,2572.9,4.2138]
[1727286554858,0.38866,2573.1,2572.9,4.60248]
[1727286555058,4.17938,2573.3,2572.9,4.2138]
[1727286555059,0.38867,2573.0,2572.9,4.2138]
[1727286555253,0.38866,2573.1,2572.9,4.60247]
[1727286555459,4.17938,2573.3,2573.1,0.38865]
[1727286555460,3.59643,2573.3,2573.1,0.38865]
[1727286555853,3.59643,2573.3,2573.2,3.03]
[1727286556464,3.2078,2573.3,2573.2,3.41864]
[1727286557264,3.59642,2573.3,2573.2,3.03]
[1727286557460,3.2078,2573.3,2573.2,3.41864]
[1727286558061,3.2078,2573.3,2573.2,7.30504]
[1727286558666,0.3886,2573.5,2573.3,0.38861]
[1727286558868,5.29162,2573.7,2573.4,3.03]
[1727286558869,3.12512,2573.7,2573.4,3.03]
[1727286559059,0.09,2574.4,2574.1,0.38849]
[1727286559257,0.38846,2574.4,2574.3,3.03]
[1727286559468,2.50965,2574.5,2574.3,3.41847]
[1727286559668,0.38845,2574.4,2574.3,3.03]
[1727286560763,3.2078,2574.5,2574.3,3.03]
[1727286560966,0.38845,2574.4,2574.3,3.41846]
[1727286561170,3.59625,2574.5,2574.3,3.41846]
[1727286561371,3.2078,2574.5,2574.3,3.03]
[1727286561663,0.38842,2574.7,2574.5,0.38843]
[1727286561972,3.2078,2574.8,2574.6,0.38842]
[1727286561973,3.5962,2574.8,2574.6,0.38842]
[1727286562173,3.5962,2574.8,2574.7,3.03]
[1727286563365,2.66557,2575.0,2574.8,0.38839]
[1727286563573,2.66556,2575.0,2574.9,3.03]
[1727286564464,0.38836,2575.0,2574.9,3.03]
[1727286570668,3.8832,2575.0,2574.8,3.03]
[1727286570871,3.2078,2575.1,2574.8,3.03]
[1727286572073,0.38838,2574.9,2574.8,3.03]
[1727286574477,5.24334,2574.9,2574.8,3.03]
[1727286577281,4.68690247,2575.1,2575.0,0.38836]
[1727286577577,2.2427,2575.2,2575.1,0.38835]
[1727286578078,2.63103,2575.2,2575.1,0.38835]
[1727286578573,2.2427,2575.2,2575.1,0.38835]
[1727286578878,0.38833,2575.3,2575.2,0.38833]
[1727286579074,0.38833,2575.3,2575.1,3.41834]
[1727286579394,1.86741247,2575.4,2575.3,0.38832]
[1727286579675,3.66800247,2575.5,2575.4,0.3883]
[1727286579865,1.47910247,2575.7,2575.5,0.38828]
[1727286580063,0.38827,2575.6,2575.5,3.41828]
[1727286580272,5.90870247,2575.9,2575.6,0.38826]
[1727286580472,0.38825,2575.8,2575.7,3.03]
[1727286582375,2.1889,2575.9,2575.7,3.03]
[1727286582674,10.66119,2576.5,2575.7,6.2378]
[1727286582867,0.97039,2576.4,2576.3,3.03]
[1727286583074,1.35854,2576.4,2576.3,3.03]
[1727286583273,0.38815,2576.4,2576.3,3.03]
[1727286585171,9.6908,2576.5,2576.3,3.03]
[1727286585172,7.4935,2576.5,2576.3,3.03]
[1727286585381,0.38815,2576.4,2576.3,3.03]
[1727286587783,3.2078,2576.5,2576.3,6.9116]
[1727286588080,2.2869,2577.0,2576.4,6.2378]
[1727286588279,5.4411,2577.1,2576.4,6.2378]
[1727286588280,5.82916,2577.1,2576.9,3.03]
[1727286588481,2.1684,2577.5,2576.9,6.2378]
[1727286588777,0.38804,2577.2,2577.1,3.03]
[1727286589983,0.38803,2577.2,2577.1,3.03]
[1727286590275,0.38802,2577.3,2577.1,3.03]
[1727286590575,0.388,2577.5,2577.2,3.03]
[1727286590783,0.388,2577.5,2577.4,3.03]
[1727286591482,0.38799,2577.5,2577.4,3.03]
[1727286591681,3.2078,2577.6,2577.4,3.03]
[1727286591682,0.38798,2577.6,2577.4,3.03]
[1727286591877,0.96989,2577.8,2577.4,3.03]
[1727286591878,0.38799,2577.5,2577.4,3.03]
[1727286594784,0.38799,2577.5,2577.2,3.2078]
[1727286594785,3.2078,2577.8,2577.2,3.2078]
[1727286595078,0.96993,2577.7,2577.3,3.03]
[1727286595474,0.388,2577.5,2577.3,3.03]
[1727286595875,0.388,2577.4,2577.3,3.03]
[1727286597283,0.38798,2577.6,2577.3,3.03]
[1727286597485,0.38798,2577.6,2577.5,3.03]
[1727286600678,4.17769,2577.8,2577.5,3.03]
[1727286600679,0.38797,2577.7,2577.5,3.03]
[1727286600879,0.38797,2577.6,2577.5,4.2703]
[1727286601684,0.38797,2577.7,2577.5,4.2703]
[1727286601884,0.38797,2577.7,2577.6,3.03]
[1727286601885,0.38717,2577.7,2577.6,3.03]
[1727286604285,3.59574,2577.8,2577.6,3.03]
[1727286604488,3.2078,2577.8,2577.6,3.41797]
[1727286604983,3.59574,2577.8,2577.6,3.03]
[1727286605386,3.2078,2577.8,2577.6,3.41797]
[1727286605687,3.2078,2577.8,2577.6,3.03]
[1727286605688,3.59574,2577.8,2577.6,3.03]
[1727286606286,3.2078,2577.8,2577.6,3.41797]
[1727286606889,3.59575,2577.8,2577.6,3.03]
[1727286607574,0.38796,2577.7,2577.6,3.03]
[1727286607879,4.26716,2577.7,2577.6,3.03]
[1727286608079,0.38796,2577.7,2577.6,3.03]
[1727286608987,3.2078,2577.8,2577.6,3.03]
[1727286609190,0.38796,2577.7,2577.6,3.03]
[1727286609489,3.59575,2577.8,2577.6,3.03]
[1727286610090,0.38796,2577.7,2577.6,3.03]
[1727286612787,3.2078,2577.8,2577.6,3.03]
[1727286613086,4.81494,2577.8,2577.6,3.03]
[1727286613694,4.427,2577.8,2577.6,3.03]
[1727286613990,0.38796,2577.7,2577.6,3.03]
[1727286614293,4.81495,2577.8,2577.6,3.03]
[1727286614793,0.38796,2577.7,2577.6,3.03]
[1727286615298,4.81495,2577.8,2577.6,3.03]
[1727286615492,0.38796,2577.7,2577.6,3.03]
[1727286616094,0.38797,2577.6,2577.5,3.03]
[1727286619892,0.38797,2577.6,2576.3,3.2078]
[1727286619893,11.35910247,2577.6,2576.3,3.2078]
[1727286620194,11.35910247,2577.6,2575.6,0.09]
[1727286620195,0.38811,2576.7,2576.6,1.1444]
[1727286620394,0.38813,2576.6,2576.3,0.38817]
[1727286620593,1.2406,2576.7,2576.3,1.53257]
[1727286620795,0.38813,2576.6,2576.3,1.1444]
[1727286620986,1.62872,2576.7,2576.4,3.41814]
[1727286621796,0.38812,2576.6,2576.4,3.03]
[1727286621984,1.2406,2576.7,2576.4,3.03]
[1727286622190,0.38813,2576.6,2576.4,3.03]
[1727286623086,0.38814,2576.5,2576.4,3.03]
[1727286623295,1.2406,2576.7,2576.3,1.1444]
[1727286623494,0.38815,2576.4,2576.3,1.1444]
[1727286623901,0.38813,2576.6,2576.3,1.53256]
[1727286624101,0.38813,2576.6,2576.5,3.03]
[1727286624799,1.62872,2576.7,2576.5,3.03]
[1727286625006,0.38812,2576.6,2576.5,3.03]
[1727286625901,0.38815,2576.4,2576.3,4.1744]
[1727286626196,0.38814,2576.5,2576.3,4.1744]
[1727286626394,0.38813,2576.6,2576.3,4.56256]
[1727286626604,2.2109,2576.7,2576.3,4.1744]
[1727286626789,2.2109,2576.7,2576.0,6.2378]
[1727286626790,0.38819,2576.2,2576.0,6.2378]
[1727286626998,0.38819,2576.2,2576.0,4.2515]
[1727286627194,0.38819,2576.2,2576.1,3.03]
[1727286627999,0.38814,2576.5,2576.2,0.38818]
[1727286628203,0.38814,2576.5,2576.3,3.03]
[1727286628396,0.38815,2576.4,2576.3,3.03]
[1727286628591,2.72471168,2576.7,2576.3,3.03]
[1727286628797,2.72471168,2576.7,2576.0,5.22202]
[1727286628798,1.62872,2576.7,2576.5,3.41813]
[1727286628994,0.38807,2577.0,2576.8,0.38809]
[1727286629194,0.38807,2577.0,2576.9,3.03]
[1727286629501,0.38806,2577.1,2576.9,3.03]
[1727286630098,0.38806,2577.0,2576.9,3.03]
[1727286630293,0.38809,2576.9,2576.6,7.2815]
[1727286630497,0.38809,2576.9,2576.6,4.0737]
[1727286630498,0.38811,2576.7,2576.6,4.0737]
[1727286630989,0.3881,2576.8,2576.6,4.46182]
[1727286631193,0.38811,2576.7,2576.6,4.0737]
[1727286631393,0.3881,2576.8,2576.6,4.46181]
[1727286631699,2.45426168,2577.1,2576.7,3.03]
[1727286631897,2.45426168,2577.1,2576.7,3.41811]
[1727286631898,0.38809,2576.9,2576.7,3.41811]
[1727286632098,0.38807,2577.0,2576.8,0.38809]
[1727286632311,1.87218168,2577.0,2576.8,0.38809]
[1727286632492,0.38807,2577.0,2576.8,0.38809]
[1727286632805,1.48411168,2577.1,2576.7,3.03]
[1727286633005,0.38807,2577.0,2576.8,0.38809]
[1727286633201,0.38806,2577.0,2576.9,3.03]
[1727286633499,1.87217168,2577.0,2576.9,3.03]
[1727286633908,1.87217168,2577.0,2576.8,0.38809]
[1727286634105,1.48411168,2577.1,2576.9,0.38808]
[1727286634398,1.87217168,2577.1,2576.9,0.38808]
[1727286634603,0.38806,2577.0,2576.8,0.38808]
[1727286634807,0.38809,2576.9,2576.7,3.4181]
[1727286635306,0.38807,2577.0,2576.8,0.38809]
[1727286635500,0.38807,2577.0,2576.9,3.03]
[1727286635501,0.38806,2577.0,2576.9,3.03]
[1727286636601,1.48411168,2577.2,2576.9,3.03]
[1727286636808,1.87212168,2577.4,2577.1,3.41805]
[1727286637005,5.07990168,2577.5,2577.4,3.03]
[1727286637204,4.69191168,2577.5,2577.4,3.03]
[1727286637404,3.59579,2577.5,2577.4,3.03]
[1727286637602,5.07990168,2577.5,2577.4,3.03]
[1727286637904,5.14326941,2577.5,2577.4,3.03]
[1727286638301,4.75527941,2577.5,2577.2,5.1896]
[1727286638497,1.54747941,2577.4,2577.2,5.1896]
[1727286638694,1.48411168,2577.4,2577.2,5.1896]
[1727286639103,5.07991168,2577.5,2577.2,5.1896]
[1727286639297,5.07991168,2577.5,2577.2,5.57763]
[1727286639498,1.48411168,2577.6,2577.4,3.41799]
[1727286639701,1.87207168,2577.7,2577.4,3.41799]
[1727286640011,1.48411168,2577.7,2577.6,3.03]
[1727286640204,1.54748286,2577.7,2577.6,3.41797]
[1727286640403,1.48411168,2577.8,2577.7,0.38796]
[1727286640715,1.48411168,2577.9,2577.8,0.38794]
[1727286640908,1.48411168,2577.9,2577.8,3.03]
[1727286640909,1.93541823,2577.9,2577.8,3.03]
[1727286641210,0.38794,2577.8,2577.7,1.0644]
[1727286641407,1.94460481,2577.8,2577.7,1.0644]
[1727286641704,1.94460634,2577.8,2577.7,1.0644]
[1727286641911,0.38794,2577.8,2577.7,1.0644]
[1727286643008,3.94257602,2577.8,2577.2,3.03]
[1727286643212,4.76427402,2577.7,2577.4,1.0317]
[1727286643508,0.38799,2577.5,2577.4,1.0317]
[1727286644104,11.373098,2577.5,2576.9,3.2078]
[1727286644320,0.38806,2577.1,2576.9,3.2078]
[1727286645004,2.2086,2577.4,2576.9,3.59587]
[1727286645198,0.38803,2577.3,2577.0,3.41806]
[1727286645406,2.2086,2577.4,2577.0,3.03]
[1727286645600,2.2086,2577.4,2576.9,3.2078]
[1727286645807,0.38805,2577.1,2576.9,3.2078]
[1727286646108,0.38804,2577.2,2576.9,3.2078]
[1727286646311,1.493098,2577.3,2576.9,3.2078]
[1727286646610,0.38808,2576.9,2576.8,3.03]
[1727286647113,3.2078,2577.1,2576.7,1.0317]
[1727286647114,0.38809,2576.8,2576.7,1.0317]
[1727286647304,5.671048,2577.1,2576.7,1.0317]
[1727286647617,0.38809,2576.9,2576.7,1.0317]
[1727286647816,5.671048,2577.1,2576.7,1.4198]
[1727286647817,4.700898,2577.1,2576.7,1.4198]
[1727286648111,4.700898,2577.1,2576.8,3.41809]
[1727286648315,3.2078,2577.1,2576.9,0.38807]
[1727286648519,1.493098,2577.2,2577.0,3.03]
[1727286648718,1.881138,2577.2,2577.0,3.03]
[1727286648918,1.881138,2577.2,2577.0,3.41806]
[1727286649111,0.38804,2577.2,2577.0,3.41806]
[1727286649421,1.881138,2577.2,2577.0,3.41806]
[1727286649602,1.881138,2577.2,2577.0,3.03]
[1727286649809,0.38805,2577.1,2577.0,3.03]
[1727286650114,1.881138,2577.2,2577.0,3.41806]
[1727286650512,0.38805,2577.1,2577.0,3.03]
[1727286650712,1.881138,2577.2,2577.0,3.03]
[1727286650913,1.881148,2577.1,2577.0,3.03]
[1727286651107,0.38805,2577.1,2577.0,3.03]
[1727286651807,1.493098,2577.2,2577.1,0.38805]
[1727286652012,1.493098,2577.4,2577.0,6.2378]
[1727286652218,1.493098,2577.5,2577.4,0.388]
[1727286652514,1.493098,2577.5,2577.4,1.4152]
[1727286652728,2.550698,2577.8,2577.6,0.38797]
[1727286652910,1.493098,2577.8,2577.6,3.41796]
[1727286653720,0.38796,2577.7,2577.5,3.03]
[1727286654019,0.38798,2577.6,2577.4,1.0272]
[1727286654214,1.493098,2577.6,2577.4,1.0272]
[1727286654414,1.881078,2577.6,2577.4,1.0272]
[1727286654822,1.493098,2577.7,2577.5,3.03]
[1727286655010,0.38797,2577.6,2577.5,3.03]
[1727286655210,1.493098,2577.7,2577.5,3.03]
[1727286655413,1.881068,2577.7,2577.5,3.03]
[1727286655613,0.38797,2577.6,2577.5,3.03]
[1727286656417,1.881068,2577.6,2577.5,3.03]
[1727286656624,0.38799,2577.5,2577.4,1.0272]
[1727286657016,1.493098,2577.6,2577.4,1.0272]
[1727286657329,1.881068,2577.7,2577.4,1.0272]
[1727286657929,0.38797,2577.7,2577.4,1.4152]
[1727286658117,0.38797,2577.7,2577.5,3.03]
[1727286658522,0.38797,2577.6,2577.5,3.03]
[1727286658826,0.38796,2577.7,2577.5,3.03]
[1727286659629,4.700898,2577.9,2577.6,3.03]
[1727286659829,1.0517,2578.0,2577.6,3.03]
[1727286659830,1.0576,2578.1,2577.9,0.38792]
[1727286660134,2.531398,2578.3,2578.0,4.1121]
[1727286660429,2.531398,2578.3,2578.2,3.03]
[1727286660430,1.0383,2578.3,2578.2,3.03]
[1727286661430,1.0383,2578.3,2578.0,1.0821]
[1727286661431,0.38789,2578.2,2578.0,1.0821]
[1727286661923,0.38789,2578.2,2577.7,1.47374]
[1727286662125,0.3879,2578.1,2577.8,0.9982]
[1727286662426,3.2078,2578.1,2577.8,0.9982]
[1727286662731,0.99542803,2578.0,2577.5,3.03]
[1727286662928,0.99542803,2578.0,2577.6,0.9982]
[1727286662929,0.38795,2577.8,2577.6,0.9982]
[1727286663116,0.99542803,2578.0,2577.7,3.03]
[1727286663321,0.38791,2578.0,2577.7,3.03]
[1727286663520,0.99542803,2578.0,2577.7,3.03]
[1727286663826,2.03742803,2578.1,2577.6,0.9982]
[1727286664033,3.2078,2577.9,2577.6,0.9982]
[1727286664219,0.38795,2577.8,2577.6,0.9982]
[1727286664722,0.38796,2577.7,2577.6,0.9982]
[1727286664919,0.9931,2577.7,2577.6,0.9982]
[1727286665115,1.38106,2577.7,2577.6,0.9982]
[1727286665925,3.86235002,2577.7,2577.6,0.9982]
[1727286666425,3.47439002,2577.7,2577.6,0.9982]
[1727286666633,0.9931,2577.7,2577.6,0.9982]
[1727286668221,2.48129002,2577.7,2577.6,0.9982]
[1727286668426,2.48129002,2577.8,2577.6,1.38617]
[1727286668828,2.48129002,2577.8,2577.6,0.9982]
[1727286669020,2.48129002,2577.7,2577.6,0.9982]
[1727286669225,2.86925002,2577.7,2577.6,0.9982]
[1727286669519,2.48129002,2577.7,2577.6,0.9982]
[1727286671232,2.48129002,2577.7,2577.6,4.41617]
[1727286671433,1.99149037,2577.8,2577.7,0.38796]
[1727286671621,2.48129002,2578.0,2577.8,0.38794]
[1727286671622,1.99149037,2577.9,2577.8,0.38794]
[1727286672130,1.99149037,2577.9,2577.8,5.237]
[1727286672131,1.49398894,2577.9,2577.8,5.237]
[1727286672326,1.99149037,2578.1,2578.0,0.38791]
[1727286672525,2.48129002,2578.3,2578.1,0.3879]
[1727286672526,1.99222295,2578.2,2578.1,0.3879]
[1727286672726,1.99222295,2578.2,2578.0,6.6257]
[1727286672925,2.86916002,2578.3,2578.0,3.5957]